[Event "Early-Titled-Tuesday-Blitz-April-16-2024"]
[Site "Chess.com"]
[Date "2024.04.16"]
[Round "1"]
[White "Ati1517"]
[Black "theoneandonlydaaevik"]
[Result "0-1"]
[WhiteElo "2229"]
[BlackElo "2592"]
[TimeControl "180+1"]
[EndTime "8:07:41 PDT"]
[Termination "theoneandonlydaaevik won by resignation"]

1. e4 {[%clk 0:02:56.8]} 1... c5 {[%clk 0:02:58.4]} 2. Nf3 {[%clk 0:02:57]} 2...
e6 {[%clk 0:02:58]} 3. d4 {[%clk 0:02:55.9]} 3... cxd4 {[%clk 0:02:58.7]} 4.
Nxd4 {[%clk 0:02:56.1]} 4... Nf6 {[%clk 0:02:59.2]} 5. Nc3 {[%clk 0:02:56.6]}
5... Nc6 {[%clk 0:02:54]} 6. Nxc6 {[%clk 0:02:50.6]} 6... bxc6 {[%clk
0:02:54.9]} 7. Bd3 {[%clk 0:02:49.3]} 7... e5 {[%clk 0:02:50.1]} 8. O-O {[%clk
0:02:48.2]} 8... Be7 {[%clk 0:02:42.3]} 9. f4 {[%clk 0:02:47.3]} 9... d6 {[%clk
0:02:37.9]} 10. fxe5 {[%clk 0:02:45.2]} 10... dxe5 {[%clk 0:02:38.8]} 11. Be3
{[%clk 0:02:41.5]} 11... Ng4 {[%clk 0:02:38.4]} 12. Bd2 {[%clk 0:02:20.6]} 12...
Qb6+ {[%clk 0:02:37.9]} 13. Kh1 {[%clk 0:02:20.1]} 13... Nf2+ {[%clk 0:02:34.9]}
14. Rxf2 {[%clk 0:02:18.8]} 14... Qxf2 {[%clk 0:02:35.8]} 15. Be1 {[%clk
0:02:16.8]} 15... Qb6 {[%clk 0:02:30.5]} 16. b3 {[%clk 0:02:14.2]} 16... O-O
{[%clk 0:02:29.2]} 17. Bg3 {[%clk 0:02:13]} 17... Be6 {[%clk 0:02:14.1]} 18.
Bxe5 {[%clk 0:02:07]} 18... Qa5 {[%clk 0:02:14]} 19. Bd4 {[%clk 0:01:59.8]}
19... Rfd8 {[%clk 0:02:13.3]} 20. Ne2 {[%clk 0:01:58.7]} 20... Bg4 {[%clk
0:02:08.1]} 21. Bc3 {[%clk 0:01:42.7]} 21... Qh5 {[%clk 0:01:34.1]} 22. Qe1
{[%clk 0:01:35.1]} 22... Bd6 {[%clk 0:01:29.3]} 23. Ng3 {[%clk 0:01:19.4]} 23...
Qh4 {[%clk 0:01:21.6]} 24. e5 {[%clk 0:01:12.5]} 24... Be7 {[%clk 0:01:19.9]}
25. Qe4 {[%clk 0:01:11]} 25... Be6 {[%clk 0:01:14.7]} 26. Qxh4 {[%clk
0:00:55.6]} 26... Bxh4 {[%clk 0:01:15.6]} 27. Ne4 {[%clk 0:00:53.4]} 27... Be7
{[%clk 0:01:13.2]} 28. Rf1 {[%clk 0:00:51.1]} 28... c5 {[%clk 0:01:10.9]} 29. h3
{[%clk 0:00:45.3]} 29... Rac8 {[%clk 0:01:04.7]} 30. Ba5 {[%clk 0:00:44.1]}
30... Rd5 {[%clk 0:01:00.2]} 31. Bc3 {[%clk 0:00:43]} 31... Rd7 {[%clk
0:00:55.7]} 32. Ba6 {[%clk 0:00:30.2]} 32... Rb8 {[%clk 0:00:47]} 33. Bd3 {[%clk
0:00:28.7]} 33... h6 {[%clk 0:00:43.8]} 34. g3 {[%clk 0:00:28]} 34... c4 {[%clk
0:00:43.2]} 35. bxc4 {[%clk 0:00:27]} 35... Rc8 {[%clk 0:00:43.2]} 36. c5 {[%clk
0:00:18.4]} 36... Bxc5 {[%clk 0:00:40.3]} 37. Nxc5 {[%clk 0:00:18.2]} 37... Rxc5
{[%clk 0:00:41.2]} 38. Bb4 {[%clk 0:00:18.4]} 38... Rc8 {[%clk 0:00:38.2]} 39.
Kh2 {[%clk 0:00:16.9]} 39... Bxa2 {[%clk 0:00:33.5]} 40. Ra1 {[%clk 0:00:16.4]}
40... Bc4 {[%clk 0:00:31.9]} 41. Bf5 {[%clk 0:00:15.9]} 41... Be6 {[%clk
0:00:32.2]} 42. Bd3 {[%clk 0:00:16]} 42... h5 {[%clk 0:00:21]} 43. Bd6 {[%clk
0:00:15.8]} 43... Rb7 {[%clk 0:00:19.4]} 44. Ba6 {[%clk 0:00:14.5]} 44... Rxc2+
{[%clk 0:00:19.3]} 45. Kg1 {[%clk 0:00:14.4]} 45... Rbb2 {[%clk 0:00:19.9]} 46.
Bd3 {[%clk 0:00:13.3]} 46... Rg2+ {[%clk 0:00:19.8]} 47. Kf1 {[%clk 0:00:13.9]}
47... Rxg3 {[%clk 0:00:20.3]} 48. Rc1 {[%clk 0:00:12.6]} 48... Rxd3 {[%clk
0:00:19.4]} 0-1

[Event "Early-Titled-Tuesday-Blitz-April-16-2024"]
[Site "Chess.com"]
[Date "2024.04.16"]
[Round "1"]
[White "C_K_G"]
[Black "Bykov_Egor"]
[Result "1-0"]
[WhiteElo "2291"]
[BlackElo "2590"]
[TimeControl "180+1"]
[EndTime "8:07:42 PDT"]
[Termination "C_K_G won by resignation"]

1. e4 {[%clk 0:02:59.3]} 1... c5 {[%clk 0:02:57.5]} 2. Nf3 {[%clk 0:02:59.1]}
2... e6 {[%clk 0:02:57.5]} 3. d4 {[%clk 0:02:59]} 3... cxd4 {[%clk 0:02:58.3]}
4. Nxd4 {[%clk 0:02:59.2]} 4... Nf6 {[%clk 0:02:58.9]} 5. Nc3 {[%clk 0:02:59.2]}
5... Nc6 {[%clk 0:02:59]} 6. Be3 {[%clk 0:02:56.3]} 6... Bb4 {[%clk 0:02:56.2]}
7. Bd3 {[%clk 0:02:55.8]} 7... d5 {[%clk 0:02:55.1]} 8. exd5 {[%clk 0:02:43.1]}
8... Nxd5 {[%clk 0:02:53.1]} 9. Nxc6 {[%clk 0:02:42]} 9... bxc6 {[%clk 0:02:45]}
10. Bd2 {[%clk 0:02:40.7]} 10... O-O {[%clk 0:02:14.3]} 11. O-O {[%clk
0:02:30.3]} 11... Rb8 {[%clk 0:02:06.7]} 12. Qh5 {[%clk 0:02:01.2]} 12... g6
{[%clk 0:02:01.2]} 13. Qh6 {[%clk 0:01:56.4]} 13... Qf6 {[%clk 0:01:50.3]} 14.
Ne4 {[%clk 0:01:50.8]} 14... Qg7 {[%clk 0:01:40.1]} 15. Qxg7+ {[%clk 0:01:36]}
15... Kxg7 {[%clk 0:01:41]} 16. c3 {[%clk 0:01:34.1]} 16... Be7 {[%clk
0:01:39.7]} 17. b4 {[%clk 0:01:31.9]} 17... f5 {[%clk 0:01:31.4]} 18. Ng3 {[%clk
0:01:21.4]} 18... e5 {[%clk 0:01:29.5]} 19. Bc4 {[%clk 0:01:15.2]} 19... Bf6
{[%clk 0:01:23.5]} 20. Rfe1 {[%clk 0:01:11.8]} 20... Rd8 {[%clk 0:01:18.7]} 21.
Rad1 {[%clk 0:01:09.1]} 21... Nb6 {[%clk 0:01:15.6]} 22. Bb3 {[%clk 0:01:07.4]}
22... Ba6 {[%clk 0:01:15.6]} 23. Nf1 {[%clk 0:00:56]} 23... Nc4 {[%clk
0:01:07.8]} 24. Bc1 {[%clk 0:00:49.9]} 24... e4 {[%clk 0:01:07.9]} 25. Ne3
{[%clk 0:00:48.2]} 25... Nxe3 {[%clk 0:01:02.5]} 26. Bxe3 {[%clk 0:00:42.5]}
26... Bxc3 {[%clk 0:01:02.7]} 27. Rxd8 {[%clk 0:00:41.8]} 27... Rxd8 {[%clk
0:01:03.6]} 28. Rc1 {[%clk 0:00:41.6]} 28... Bxb4 {[%clk 0:00:52]} 29. Rxc6
{[%clk 0:00:39]} 29... Be2 {[%clk 0:00:31.6]} 30. Rc7+ {[%clk 0:00:34.6]} 30...
Kf6 {[%clk 0:00:30.4]} 31. h4 {[%clk 0:00:34.2]} 31... Ke5 {[%clk 0:00:20.4]}
32. Rxa7 {[%clk 0:00:27.5]} 32... Bd2 {[%clk 0:00:15.3]} 33. Bxd2 {[%clk
0:00:17.1]} 33... Rxd2 {[%clk 0:00:16.2]} 34. Rxh7 {[%clk 0:00:16.8]} 34... f4
{[%clk 0:00:16.8]} 35. Rg7 {[%clk 0:00:14.4]} 35... Bd3 {[%clk 0:00:15.1]} 36.
Rxg6 {[%clk 0:00:13.4]} 36... e3 {[%clk 0:00:15.7]} 37. Rg5+ {[%clk 0:00:13.9]}
37... Kd4 {[%clk 0:00:15.6]} 38. fxe3+ {[%clk 0:00:14.4]} 38... fxe3 {[%clk
0:00:16.2]} 39. Rg4+ {[%clk 0:00:12.8]} 39... Be4 {[%clk 0:00:16.7]} 40. Bc4
{[%clk 0:00:09.1]} 40... Rxg2+ {[%clk 0:00:08.6]} 41. Rxg2 {[%clk 0:00:08.9]}
41... Bxg2 {[%clk 0:00:09.5]} 42. Kxg2 {[%clk 0:00:09.3]} 42... Kxc4 {[%clk
0:00:09.9]} 43. Kf1 {[%clk 0:00:08.5]} 1-0

[Event "Early-Titled-Tuesday-Blitz-April-16-2024"]
[Site "Chess.com"]
[Date "2024.04.16"]
[Round "1"]
[White "vladislavkovalev"]
[Black "Slovineanu"]
[Result "1-0"]
[WhiteElo "2885"]
[BlackElo "2497"]
[TimeControl "180+1"]
[EndTime "8:07:43 PDT"]
[Termination "vladislavkovalev won by resignation"]

1. e4 {[%clk 0:03:00.9]} 1... c6 {[%clk 0:02:53.6]} 2. Nf3 {[%clk 0:03:00.8]}
2... d5 {[%clk 0:02:53.2]} 3. d3 {[%clk 0:03:01.6]} 3... dxe4 {[%clk 0:02:50.8]}
4. dxe4 {[%clk 0:03:02.5]} 4... Qc7 {[%clk 0:02:51.4]} 5. Bc4 {[%clk 0:02:56.1]}
5... e5 {[%clk 0:02:47.1]} 6. O-O {[%clk 0:02:55.6]} 6... Nf6 {[%clk 0:02:46.6]}
7. Ng5 {[%clk 0:02:51.4]} 7... Bg4 {[%clk 0:02:45.2]} 8. Qd3 {[%clk 0:02:16.4]}
8... Bh5 {[%clk 0:02:43.1]} 9. Be3 {[%clk 0:01:51.6]} 9... h6 {[%clk 0:02:35.1]}
10. Nh3 {[%clk 0:01:31.4]} 10... Bg4 {[%clk 0:02:22.9]} 11. f4 {[%clk
0:01:23.8]} 11... Bxh3 {[%clk 0:02:08.1]} 12. gxh3 {[%clk 0:01:23]} 12... Nbd7
{[%clk 0:01:59.9]} 13. Nd2 {[%clk 0:01:07.3]} 13... Bc5 {[%clk 0:01:10.3]} 14.
Bxc5 {[%clk 0:00:50.4]} 14... Nxc5 {[%clk 0:01:10]} 15. Qg3 {[%clk 0:00:51.3]}
15... O-O-O {[%clk 0:01:00.4]} 16. fxe5 {[%clk 0:00:43.2]} 16... Rxd2 {[%clk
0:00:46.4]} 17. exf6 {[%clk 0:00:43.4]} 17... gxf6 {[%clk 0:00:33]} 18. Rxf6
{[%clk 0:00:28.3]} 18... Qxg3+ {[%clk 0:00:26.4]} 19. hxg3 {[%clk 0:00:28.2]}
19... Nxe4 {[%clk 0:00:20.6]} 20. Rxf7 {[%clk 0:00:28.2]} 20... Nxg3 {[%clk
0:00:18.6]} 21. Re1 {[%clk 0:00:27.2]} 21... Rg8 {[%clk 0:00:16]} 22. Be6+
{[%clk 0:00:12.3]} 22... Kb8 {[%clk 0:00:12.8]} 23. Rxb7+ {[%clk 0:00:12.7]}
23... Kxb7 {[%clk 0:00:12]} 24. Bxg8 {[%clk 0:00:13.6]} 24... Rxc2 {[%clk
0:00:11.6]} 25. Re3 {[%clk 0:00:05.9]} 25... Nf5 {[%clk 0:00:10.2]} 26. Rb3+
{[%clk 0:00:05.6]} 26... Kc7 {[%clk 0:00:10.5]} 27. Bh7 {[%clk 0:00:03.4]} 27...
Nd4 {[%clk 0:00:09.5]} 28. Bxc2 {[%clk 0:00:03]} 28... Nxc2 {[%clk 0:00:08.4]}
29. Kf2 {[%clk 0:00:03.8]} 29... Kd6 {[%clk 0:00:08.3]} 30. Rc3 {[%clk 0:00:04]}
30... Nd4 {[%clk 0:00:07.6]} 31. Ke3 {[%clk 0:00:04.7]} 31... c5 {[%clk
0:00:07.7]} 32. Ke4 {[%clk 0:00:05.1]} 32... Nc6 {[%clk 0:00:06.3]} 33. Rg3
{[%clk 0:00:04.5]} 33... c4 {[%clk 0:00:05.5]} 34. Rg6+ {[%clk 0:00:04.8]} 34...
Kc5 {[%clk 0:00:06.1]} 35. Rxh6 {[%clk 0:00:05.2]} 35... Nb4 {[%clk 0:00:06.7]}
36. a3 {[%clk 0:00:05.1]} 36... Nd3 {[%clk 0:00:06.7]} 37. b3 {[%clk 0:00:02.4]}
37... Nf2+ {[%clk 0:00:05.4]} 38. Ke3 {[%clk 0:00:02.5]} 38... cxb3 {[%clk
0:00:05.8]} 39. Kd2 {[%clk 0:00:03]} 39... b2 {[%clk 0:00:05.4]} 40. Kc2 {[%clk
0:00:03.6]} 40... Nd3 {[%clk 0:00:05.8]} 41. Rh8 {[%clk 0:00:03.1]} 41... a5
{[%clk 0:00:05]} 42. Rb8 {[%clk 0:00:03.6]} 42... a4 {[%clk 0:00:04.5]} 43. Kxd3
{[%clk 0:00:03.6]} 1-0

[Event "Early-Titled-Tuesday-Blitz-April-16-2024"]
[Site "Chess.com"]
[Date "2024.04.16"]
[Round "1"]
[White "only_strong_moves"]
[Black "MdChess1734"]
[Result "0-1"]
[WhiteElo "2628"]
[BlackElo "2359"]
[TimeControl "180+1"]
[EndTime "8:07:46 PDT"]
[Termination "MdChess1734 won by resignation"]

1. d4 {[%clk 0:03:00.9]} 1... Nf6 {[%clk 0:02:59.6]} 2. c4 {[%clk 0:03:01.5]}
2... e6 {[%clk 0:02:59.7]} 3. Nf3 {[%clk 0:03:02]} 3... Bb4+ {[%clk 0:02:59.9]}
4. Nbd2 {[%clk 0:03:00.5]} 4... b6 {[%clk 0:02:56.1]} 5. g3 {[%clk 0:03:00.6]}
5... Bb7 {[%clk 0:02:54.8]} 6. Bg2 {[%clk 0:03:01.3]} 6... O-O {[%clk
0:02:52.2]} 7. O-O {[%clk 0:03:01.8]} 7... d5 {[%clk 0:02:51.1]} 8. cxd5 {[%clk
0:02:58.7]} 8... exd5 {[%clk 0:02:25.1]} 9. a3 {[%clk 0:02:58.6]} 9... Be7
{[%clk 0:02:23.2]} 10. Ne5 {[%clk 0:02:58.7]} 10... c5 {[%clk 0:02:22.5]} 11.
Ndf3 {[%clk 0:02:58]} 11... Nbd7 {[%clk 0:02:19.4]} 12. Bf4 {[%clk 0:02:58.7]}
12... Rc8 {[%clk 0:02:17.6]} 13. Rc1 {[%clk 0:02:58.4]} 13... c4 {[%clk
0:02:11.9]} 14. Nxd7 {[%clk 0:02:52.9]} 14... Qxd7 {[%clk 0:02:04.9]} 15. Ne5
{[%clk 0:02:53.2]} 15... Qe6 {[%clk 0:02:02.8]} 16. Re1 {[%clk 0:02:53.4]} 16...
Bd6 {[%clk 0:01:57.8]} 17. f3 {[%clk 0:02:48.5]} 17... Nh5 {[%clk 0:01:53.1]}
18. e4 {[%clk 0:02:45.6]} 18... Nxf4 {[%clk 0:01:50.8]} 19. gxf4 {[%clk
0:02:45.5]} 19... f6 {[%clk 0:01:47.7]} 20. f5 {[%clk 0:02:39.4]} 20... Qe7
{[%clk 0:01:38.6]} 21. Ng4 {[%clk 0:02:40]} 21... Bf4 {[%clk 0:01:34.9]} 22. Rc2
{[%clk 0:02:40]} 22... Qd6 {[%clk 0:01:31.9]} 23. Kh1 {[%clk 0:02:30.8]} 23...
Rfd8 {[%clk 0:01:29.3]} 24. e5 {[%clk 0:02:30.7]} 24... fxe5 {[%clk 0:01:29.2]}
25. dxe5 {[%clk 0:02:31.6]} 25... Qf8 {[%clk 0:01:28.3]} 26. f6 {[%clk
0:02:31.1]} 26... d4 {[%clk 0:01:22.6]} 27. Bh3 {[%clk 0:02:28.2]} 27... d3
{[%clk 0:01:19]} 28. Rg2 {[%clk 0:02:28.7]} 28... g6 {[%clk 0:01:17.2]} 29. e6
{[%clk 0:02:23.7]} 29... Qc5 {[%clk 0:01:15.3]} 30. e7 {[%clk 0:02:21.9]} 30...
Re8 {[%clk 0:01:14.2]} 31. Nf2 {[%clk 0:02:14.1]} 31... Qh5 {[%clk 0:01:09]} 32.
Be6+ {[%clk 0:02:11]} 32... Kh8 {[%clk 0:01:05.5]} 33. Bg4 {[%clk 0:02:10]}
33... Qd5 {[%clk 0:01:03.9]} 34. Nh3 {[%clk 0:01:51.2]} 34... Be5 {[%clk
0:00:53.9]} 35. f7 {[%clk 0:01:39.6]} 35... Qxf7 {[%clk 0:00:48.5]} 36. Rxe5
{[%clk 0:01:36]} 36... Rc7 {[%clk 0:00:45.5]} 37. Qd2 {[%clk 0:00:54.9]} 37...
Rcxe7 {[%clk 0:00:41.7]} 38. Rxe7 {[%clk 0:00:54.7]} 38... Qxe7 {[%clk
0:00:38.9]} 39. Rf2 {[%clk 0:00:52.1]} 39... Qe5 {[%clk 0:00:25.4]} 40. Ng5
{[%clk 0:00:50.2]} 40... Rf8 {[%clk 0:00:25]} 41. Kg2 {[%clk 0:00:44.9]} 41...
Rf4 {[%clk 0:00:22]} 42. h3 {[%clk 0:00:20.4]} 42... Qxg5 {[%clk 0:00:21.2]} 43.
Qc3+ {[%clk 0:00:21.1]} 43... Kg8 {[%clk 0:00:16.7]} 44. Kg3 {[%clk 0:00:21.1]}
44... h5 {[%clk 0:00:16.9]} 45. b3 {[%clk 0:00:06.5]} 45... hxg4 {[%clk
0:00:16.6]} 46. hxg4 {[%clk 0:00:07.4]} 46... Bxf3 {[%clk 0:00:15.2]} 0-1

[Event "Early-Titled-Tuesday-Blitz-April-16-2024"]
[Site "Chess.com"]
[Date "2024.04.16"]
[Round "1"]
[White "Sanan_Sjugirov"]
[Black "B_nn_t"]
[Result "1/2-1/2"]
[WhiteElo "3054"]
[BlackElo "2538"]
[TimeControl "180+1"]
[EndTime "8:07:48 PDT"]
[Termination "Game drawn by repetition"]

1. e4 {[%clk 0:03:00.9]} 1... c5 {[%clk 0:03:00.1]} 2. Nf3 {[%clk 0:03:00.9]}
2... d6 {[%clk 0:03:00.4]} 3. d4 {[%clk 0:03:00.8]} 3... cxd4 {[%clk 0:03:01.3]}
4. Nxd4 {[%clk 0:03:01.4]} 4... Nf6 {[%clk 0:03:01.5]} 5. Nc3 {[%clk 0:03:02.1]}
5... Nc6 {[%clk 0:03:01.9]} 6. Bg5 {[%clk 0:03:02]} 6... e6 {[%clk 0:03:02.1]}
7. Qd2 {[%clk 0:03:02.1]} 7... a6 {[%clk 0:03:01]} 8. O-O-O {[%clk 0:03:01.9]}
8... Bd7 {[%clk 0:02:58.3]} 9. f4 {[%clk 0:03:00.7]} 9... Be7 {[%clk 0:02:58.1]}
10. Nf3 {[%clk 0:03:00.6]} 10... b5 {[%clk 0:02:56.8]} 11. Bxf6 {[%clk
0:03:00.8]} 11... gxf6 {[%clk 0:02:56.2]} 12. Kb1 {[%clk 0:02:59.3]} 12... Qb6
{[%clk 0:02:54.6]} 13. f5 {[%clk 0:02:57.1]} 13... O-O-O {[%clk 0:02:53.8]} 14.
Qh6 {[%clk 0:02:48.4]} 14... Kb7 {[%clk 0:02:33.6]} 15. Bd3 {[%clk 0:02:46.8]}
15... Ka7 {[%clk 0:02:23.9]} 16. Qh5 {[%clk 0:02:35.6]} 16... Rhf8 {[%clk
0:02:11.7]} 17. Rhe1 {[%clk 0:02:26.4]} 17... Nb4 {[%clk 0:01:55.4]} 18. fxe6
{[%clk 0:02:15.7]} 18... fxe6 {[%clk 0:01:49.8]} 19. Qxh7 {[%clk 0:02:15]} 19...
Rfe8 {[%clk 0:01:45.5]} 20. Bf1 {[%clk 0:02:01.8]} 20... Rc8 {[%clk 0:01:41.6]}
21. Nd4 {[%clk 0:01:46.3]} 21... Rc7 {[%clk 0:01:24.3]} 22. Qh3 {[%clk
0:01:23.1]} 22... Rec8 {[%clk 0:01:14.3]} 23. Qe3 {[%clk 0:00:58.9]} 23... Kb8
{[%clk 0:01:00.8]} 24. g3 {[%clk 0:00:46.9]} 24... Nc6 {[%clk 0:00:49.3]} 25.
Nxc6+ {[%clk 0:00:42.2]} 25... Qxc6 {[%clk 0:00:50.2]} 26. Bd3 {[%clk
0:00:40.4]} 26... b4 {[%clk 0:00:42]} 27. Ne2 {[%clk 0:00:40.5]} 27... e5 {[%clk
0:00:41.6]} 28. c4 {[%clk 0:00:29]} 28... bxc3 {[%clk 0:00:40.7]} 29. Nxc3
{[%clk 0:00:29.3]} 29... Be6 {[%clk 0:00:38.1]} 30. Rc1 {[%clk 0:00:25.9]} 30...
Qb7 {[%clk 0:00:33.2]} 31. Ka1 {[%clk 0:00:20]} 31... Rc5 {[%clk 0:00:27.9]} 32.
Qd2 {[%clk 0:00:13.8]} 32... d5 {[%clk 0:00:20.7]} 33. exd5 {[%clk 0:00:13.8]}
33... Bxd5 {[%clk 0:00:20.9]} 34. Nxd5 {[%clk 0:00:11.1]} 34... Qxd5 {[%clk
0:00:20.2]} 35. Rxc5 {[%clk 0:00:09.9]} 35... Bxc5 {[%clk 0:00:17.3]} 36. Qe2
{[%clk 0:00:09.1]} 36... Bd4 {[%clk 0:00:17]} 37. Bxa6 {[%clk 0:00:04.8]} 37...
Rc7 {[%clk 0:00:16.9]} 38. Rb1 {[%clk 0:00:02.9]} 38... Ka7 {[%clk 0:00:15.8]}
39. Bd3 {[%clk 0:00:02.7]} 39... Qa5 {[%clk 0:00:14.7]} 40. Qd1 {[%clk
0:00:02.1]} 40... Rd7 {[%clk 0:00:11.6]} 41. Qb3 {[%clk 0:00:02.4]} 41... Rb7
{[%clk 0:00:11.5]} 42. Qc2 {[%clk 0:00:02.8]} 42... Rc7 {[%clk 0:00:11.7]} 43.
Qb3 {[%clk 0:00:03]} 43... Rb7 {[%clk 0:00:12.2]} 44. Qc4 {[%clk 0:00:02.8]}
44... Rb4 {[%clk 0:00:12.2]} 45. Qc2 {[%clk 0:00:02.8]} 45... Ra4 {[%clk
0:00:12.3]} 46. Qb3 {[%clk 0:00:02.8]} 46... Rb4 {[%clk 0:00:12.8]} 47. Qf7+
{[%clk 0:00:03]} 47... Rb7 {[%clk 0:00:12.9]} 48. Qc4 {[%clk 0:00:03.5]} 48...
Rc7 {[%clk 0:00:12.9]} 49. Qg8 {[%clk 0:00:02.9]} 49... Rb7 {[%clk 0:00:13]} 50.
Qc4 {[%clk 0:00:02.7]} 1/2-1/2

[Event "Early-Titled-Tuesday-Blitz-April-16-2024"]
[Site "Chess.com"]
[Date "2024.04.16"]
[Round "1"]
[White "GrigorGrigorov"]
[Black "Happy1712Drummer"]
[Result "1-0"]
[WhiteElo "2924"]
[BlackElo "2509"]
[TimeControl "180+1"]
[EndTime "8:07:48 PDT"]
[Termination "GrigorGrigorov won by resignation"]

1. d4 {[%clk 0:03:00.9]} 1... d5 {[%clk 0:02:59.3]} 2. c4 {[%clk 0:03:00.6]}
2... e6 {[%clk 0:02:58.6]} 3. Nf3 {[%clk 0:03:00.5]} 3... Nf6 {[%clk 0:02:57.8]}
4. g3 {[%clk 0:03:00.9]} 4... c5 {[%clk 0:02:57.8]} 5. cxd5 {[%clk 0:02:56.9]}
5... exd5 {[%clk 0:02:57.5]} 6. Bg2 {[%clk 0:02:55.5]} 6... Nc6 {[%clk
0:02:57.6]} 7. O-O {[%clk 0:02:55.1]} 7... Be7 {[%clk 0:02:57.8]} 8. Nc3 {[%clk
0:02:53.3]} 8... O-O {[%clk 0:02:51.6]} 9. dxc5 {[%clk 0:02:53.5]} 9... Bxc5
{[%clk 0:02:51.4]} 10. Na4 {[%clk 0:02:53.4]} 10... Be7 {[%clk 0:02:48.1]} 11.
Be3 {[%clk 0:02:53.3]} 11... Ne4 {[%clk 0:02:32.1]} 12. Rc1 {[%clk 0:02:49.7]}
12... Be6 {[%clk 0:02:29.5]} 13. Nd4 {[%clk 0:02:48.7]} 13... Nxd4 {[%clk
0:02:19.3]} 14. Bxd4 {[%clk 0:02:49.6]} 14... b6 {[%clk 0:01:59.4]} 15. Nc3
{[%clk 0:02:44.4]} 15... Nxc3 {[%clk 0:01:51.8]} 16. Rxc3 {[%clk 0:02:41.3]}
16... Rc8 {[%clk 0:01:50.8]} 17. Qd3 {[%clk 0:02:39.4]} 17... Qd7 {[%clk
0:01:44.6]} 18. Rfc1 {[%clk 0:02:36.3]} 18... Bb4 {[%clk 0:01:40.2]} 19. Rxc8
{[%clk 0:02:26.6]} 19... Rxc8 {[%clk 0:01:41.1]} 20. Rxc8+ {[%clk 0:02:10.9]}
20... Qxc8 {[%clk 0:01:42]} 21. h4 {[%clk 0:02:10.8]} 21... Qc1+ {[%clk
0:01:22.3]} 22. Kh2 {[%clk 0:02:09.6]} 22... Bc5 {[%clk 0:01:22.7]} 23. Bxc5
{[%clk 0:01:45.4]} 23... Qxc5 {[%clk 0:01:20.8]} 24. e3 {[%clk 0:01:45.8]} 24...
g6 {[%clk 0:01:15.2]} 25. a3 {[%clk 0:01:43.8]} 25... Qc1 {[%clk 0:01:11.8]} 26.
Qd4 {[%clk 0:01:37.1]} 26... Qc2 {[%clk 0:01:05.7]} 27. Qf6 {[%clk 0:01:35.8]}
27... h5 {[%clk 0:00:58.3]} 28. Bh3 {[%clk 0:01:01.2]} 28... Bxh3 {[%clk
0:00:50]} 29. Kxh3 {[%clk 0:01:02.1]} 29... Qc8+ {[%clk 0:00:49.6]} 30. Kg2
{[%clk 0:00:59.8]} 30... Qc4 {[%clk 0:00:46.2]} 31. Kh2 {[%clk 0:00:50.1]} 31...
Qe4 {[%clk 0:00:44.7]} 32. Qd8+ {[%clk 0:00:45.1]} 32... Kg7 {[%clk 0:00:43.6]}
33. Qc7 {[%clk 0:00:46]} 33... Qf3 {[%clk 0:00:39.2]} 34. Kg1 {[%clk 0:00:39.6]}
34... Qd1+ {[%clk 0:00:35]} 35. Kg2 {[%clk 0:00:39.9]} 35... Qd2 {[%clk
0:00:27.7]} 36. Qe5+ {[%clk 0:00:38.1]} 36... Kh7 {[%clk 0:00:27.4]} 37. Qf6
{[%clk 0:00:32.7]} 37... Kg8 {[%clk 0:00:23.5]} 38. Kf3 {[%clk 0:00:30.7]} 38...
Qd1+ {[%clk 0:00:22.6]} 39. Kf4 {[%clk 0:00:30.1]} 39... Qg4+ {[%clk 0:00:22]}
40. Ke5 {[%clk 0:00:29.2]} 40... Qe4+ {[%clk 0:00:22.2]} 41. Kd6 {[%clk
0:00:29.1]} 41... Qd3 {[%clk 0:00:14.4]} 42. Ke7 {[%clk 0:00:20.6]} 42... Qe4+
{[%clk 0:00:14.1]} 43. Kd7 {[%clk 0:00:21.2]} 43... Qd3 {[%clk 0:00:12.8]} 44.
Ke8 {[%clk 0:00:18.9]} 44... Qe4+ {[%clk 0:00:12.5]} 45. Qe7 {[%clk 0:00:19.4]}
45... Qa4+ {[%clk 0:00:11.8]} 46. Kd8 {[%clk 0:00:17.8]} 46... Qc6 {[%clk
0:00:10.7]} 47. Qe8+ {[%clk 0:00:17.9]} 47... Kg7 {[%clk 0:00:10.8]} 48. Qxc6
{[%clk 0:00:17.5]} 48... d4 {[%clk 0:00:07.4]} 49. exd4 {[%clk 0:00:16.6]} 49...
Kh7 {[%clk 0:00:05.9]} 50. Qf6 {[%clk 0:00:15.9]} 50... Kg8 {[%clk 0:00:05.5]}
51. Ke7 {[%clk 0:00:16]} 1-0